bitfinex-derivatives/quotes_BTCF0:USTF0_20250729
["timestamp","ask_amount","ask_price","bid_price","bid_amount"]
[1753762034929,0.55891006,118870.0,118860.0,0.1682636]
[1753762035632,0.1682752,118860.0,118850.0,0.2773069]
[1753762035936,1.23568426,118860.0,118850.0,0.2773069]
[1753762037732,1.23568426,118860.0,118850.0,0.3083669]
[1753762037936,1.73668426,118860.0,118850.0,0.3651069]
[1753762038637,1.73668426,118860.0,118850.0,0.3872969]
[1753762039135,1.74499288,118860.0,118850.0,0.3872969]
[1753762041232,1.74503288,118860.0,118850.0,0.3872969]
[1753762047040,1.74503288,118860.0,118850.0,0.3305569]
[1753762047245,1.74503288,118860.0,118850.0,0.2773069]
[1753762048247,1.74503288,118860.0,118850.0,0.2524169]
[1753762048543,1.74503288,118860.0,118850.0,0.2773069]
[1753762050948,1.74503288,118860.0,118850.0,0.02489]
[1753762051248,1.74503288,118860.0,118850.0,0.1931796]
[1753762055444,1.06827288,118860.0,118850.0,0.2242396]
[1753762055743,1.74479288,118860.0,118850.0,0.3031696]
[1753762057554,1.74479288,118860.0,118850.0,0.2798896]
[1753762059754,1.74479288,118860.0,118850.0,0.3031696]
[1753762060258,1.74479288,118860.0,118850.0,0.2798896]
[1753762060446,1.74479288,118860.0,118850.0,0.2242396]
[1753762060858,1.74479288,118860.0,118850.0,0.1931796]
[1753762062153,0.1682897,118850.0,118840.0,0.2945165]
[1753762062355,0.55893876,118850.0,118840.0,0.2352569]
[1753762063559,0.55893876,118850.0,118840.0,0.2362569]
[1753762063761,1.05893876,118850.0,118840.0,0.2362569]
[1753762064961,1.05893876,118850.0,118840.0,0.2908669]
[1753762065265,1.05893876,118850.0,118840.0,0.3235869]
[1753762065466,1.05893876,118850.0,118840.0,0.3446469]
[1753762066260,1.05993876,118850.0,118840.0,0.3446469]
[1753762067262,1.05993876,118850.0,118840.0,0.3436469]
[1753762069563,0.7792897,118850.0,118840.0,0.3436469]
[1753762069765,1.05993876,118850.0,118840.0,0.3436469]
[1753762071062,1.05993876,118850.0,118840.0,0.2873669]
[1753762071263,1.05993876,118850.0,118840.0,0.193194]
[1753762072470,0.1683039,118840.0,118830.0,0.3496107]
[1753762072766,1.23527296,118840.0,118830.0,0.4269507]
[1753762074359,1.73527296,118840.0,118830.0,0.4269507]
[1753762074866,1.73527296,118840.0,118830.0,0.4279507]
[1753762075268,1.73627296,118840.0,118830.0,0.4279507]
[1753762075961,1.73627296,118840.0,118830.0,0.4269507]
[1753762077064,1.73627296,118840.0,118830.0,0.2654547]
[1753762077266,1.73627296,118840.0,118830.0,0.3217347]
[1753762077471,1.73627296,118840.0,118830.0,0.3427947]
[1753762077772,0.1683322,118820.0,118810.0,0.35073513]
[1753762077973,1.24518126,118820.0,118810.0,0.2234164]
[1753762078673,0.56898126,118820.0,118810.0,0.3007564]
[1753762078970,1.24518126,118820.0,118810.0,0.3007564]
[1753762079668,1.74518126,118820.0,118810.0,0.3027564]
[1753762080865,1.81263396,118820.0,118810.0,0.3027564]
[1753762081170,1.82116638,118820.0,118810.0,0.3037564]
[1753762081668,1.82116638,118820.0,118810.0,0.2474764]
[1753762081859,1.82116638,118820.0,118810.0,0.02601]
[1753762082465,1.82116638,118820.0,118810.0,0.1943564]
[1753762082662,1.82116638,118820.0,118810.0,0.02601]
[1753762082972,1.82116638,118820.0,118810.0,0.003]
[1753762083470,1.82116638,118820.0,118810.0,0.1943564]
[1753762083773,1.82116638,118820.0,118810.0,0.003]
[1753762083972,1.82116638,118820.0,118810.0,0.1713464]
[1753762084167,1.82116638,118820.0,118810.0,0.1943564]
[1753762086672,1.84097428,118820.0,118810.0,0.02601]
[1753762086873,1.84097428,118820.0,118810.0,0.1943564]
[1753762087273,1.82116638,118820.0,118810.0,0.1943564]
[1753762087668,1.84097017,118820.0,118810.0,0.1943564]
[1753762087870,1.84097017,118820.0,118810.0,0.02601]
[1753762088280,1.82116638,118820.0,118810.0,0.02601]
[1753762088479,1.82116638,118820.0,118810.0,0.1943564]
[1753762089781,1.82116638,118820.0,118810.0,0.2826964]
[1753762090580,1.82116638,118820.0,118810.0,0.2264164]
[1753762091377,1.14496638,118820.0,118810.0,0.2710364]
[1753762091679,1.82116638,118820.0,118810.0,0.3037564]
[1753762092380,1.82116638,118820.0,118810.0,0.2474764]
[1753762097076,1.82116638,118820.0,118810.0,0.1943564]
[1753762097682,1.82116638,118820.0,118810.0,0.02601]
[1753762097882,1.82116638,118820.0,118810.0,0.1943564]
[1753762098579,1.82116638,118820.0,118810.0,0.02601]
[1753762098882,1.82116638,118820.0,118810.0,0.1943564]
[1753762101082,1.82116638,118820.0,118810.0,0.1933564]
[1753762101483,1.82104638,118820.0,118810.0,0.1933564]
[1753762103281,1.82104638,118820.0,118810.0,0.1923564]
[1753762103690,1.82104638,118820.0,118810.0,0.02401]
[1753762104188,1.82104638,118820.0,118810.0,0.1923564]
[1753762104488,1.84087955,118820.0,118810.0,0.1923564]
[1753762104681,1.84087946,118820.0,118810.0,0.1923564]
[1753762104994,1.82104638,118820.0,118810.0,0.1923564]
[1753762105187,1.14496638,118820.0,118810.0,0.1923564]
[1753762105389,0.86431732,118820.0,118810.0,0.3050664]
[1753762105689,1.82100638,118820.0,118810.0,0.3050664]
[1753762106777,1.84086059,118820.0,118810.0,0.3050664]
[1753762113594,1.84070059,118820.0,118810.0,0.3050664]
[1753762114290,1.82084638,118820.0,118810.0,0.3050664]
[1753762124903,1.96148202,118820.0,118810.0,0.3050664]
[1753762125504,2.17212437,118820.0,118810.0,0.1693464]
[1753762125704,2.17212437,118820.0,118810.0,0.02456]
[1753762126303,2.17212437,118820.0,118810.0,0.001]
[1753762126505,2.17212437,118820.0,118810.0,0.02456]
[1753762127008,2.17212437,118820.0,118810.0,0.001]
[1753762127304,0.1683606,118800.0,118790.0,0.13606]
[1753762127510,1.3753253,118800.0,118790.0,0.13606]
[1753762128110,1.3753253,118800.0,118790.0,0.3044347]
[1753762128309,1.3753253,118800.0,118790.0,0.13606]
[1753762128710,1.3753253,118800.0,118790.0,0.3064347]
[1753762128912,1.23497507,118800.0,118790.0,0.13806]
[1753762130315,1.23497507,118800.0,118790.0,0.14106]
[1753762135419,1.23497507,118800.0,118790.0,0.3094347]
[1753762136813,1.23497507,118800.0,118790.0,0.14106]
[1753762137013,1.23497507,118800.0,118790.0,0.08414]
[1753762138019,1.23497507,118800.0,118790.0,0.14106]
[1753762139315,1.23497507,118800.0,118790.0,0.02856]
[1753762139612,1.51590954,118800.0,118790.0,0.005]
[1753762139817,1.51590954,118800.0,118790.0,0.02856]
[1753762140411,2.01590954,118800.0,118790.0,0.02856]
[1753762141513,2.01590954,118800.0,118790.0,0.005]
[1753762142419,2.01590954,118800.0,118790.0,0.02856]
[1753762146817,2.01590954,118800.0,118790.0,0.005]
[1753762148424,0.1683747,118790.0,118780.0,0.02356]
[1753762148623,0.55930917,118790.0,118780.0,0.02356]
[1753762148824,0.69991022,118790.0,118780.0,0.02356]
[1753762149919,1.19991022,118790.0,118780.0,0.02656]
[1753762150119,1.19991022,118790.0,118780.0,0.003]
[1753762150715,0.7783747,118790.0,118780.0,0.003]
[1753762150923,1.05942537,118790.0,118780.0,0.02356]
[1753762151226,1.05942537,118790.0,118780.0,0.02856]
[1753762151418,1.05942537,118790.0,118780.0,0.005]
[1753762151622,1.05942537,118790.0,118780.0,0.02856]
[1753762154224,0.61,118790.0,118780.0,0.3056689]
[1753762154430,1.28532,118790.0,118780.0,0.58671957]
[1753762154819,1.28532,118790.0,118780.0,0.75508757]
[1753762155631,1.28532,118790.0,118780.0,1.00508757]
[1753762155632,0.525,118790.0,118780.0,1.00508757]
[1753762155826,0.67528,118800.0,118790.0,0.2212247]
[1753762156027,0.06,118800.0,118790.0,0.58065537]
[1753762156226,0.9036406,118800.0,118790.0,0.74901537]
[1753762157531,0.73528,118800.0,118790.0,0.74901537]
[1753762158432,0.73528,118800.0,118790.0,0.75001537]
[1753762159035,0.9036406,118800.0,118790.0,0.75101537]
[1753762159232,0.73528,118800.0,118790.0,0.75101537]
[1753762159736,0.73528,118800.0,118790.0,0.3016047]
[1753762160532,0.7695,118800.0,118790.0,0.3016047]
[1753762160935,0.78561,118800.0,118790.0,0.3016047]
[1753762161642,1.13868067,118800.0,118790.0,0.3016047]
[1753762162743,1.30704137,118800.0,118790.0,0.3016047]
[1753762163036,1.30704137,118800.0,118790.0,0.2232247]
[1753762163539,1.30704137,118800.0,118790.0,0.2460147]
[1753762164539,1.30704137,118800.0,118790.0,0.1703747]
[1753762165035,1.30704137,118800.0,118790.0,0.1847147]
[1753762165342,1.30704137,118800.0,118790.0,0.3016047]
[1753762165538,0.63176137,118800.0,118790.0,0.3016047]
[1753762165737,1.30680137,118800.0,118790.0,0.3016047]
[1753762167643,1.30680137,118800.0,118790.0,0.1703747]
[1753762168440,1.30680137,118800.0,118790.0,0.1931647]
[1753762168638,1.30680137,118800.0,118790.0,0.2075047]
[1753762168841,1.30680137,118800.0,118790.0,0.3016047]
[1753762173137,1.30680137,118800.0,118790.0,0.2460147]
[1753762173447,1.30680137,118800.0,118790.0,0.2075047]
[1753762173646,1.30680137,118800.0,118790.0,0.1703747]
[1753762176844,1.30680137,118800.0,118790.0,0.2630947]
[1753762177142,1.30680137,118800.0,118790.0,0.3016047]
[1753762177341,0.63176137,118800.0,118790.0,0.3016047]
[1753762177646,1.30660137,118800.0,118790.0,0.3016047]
[1753762183047,1.13824067,118800.0,118790.0,0.3016047]
[1753762184258,1.30660117,118800.0,118790.0,0.3016047]
[1753762184448,1.13816067,118800.0,118790.0,0.3016047]
[1753762186463,0.46340067,118800.0,118790.0,0.3016047]
[1753762186663,0.78846,118800.0,118790.0,0.60130115]
[1753762187562,0.82155,118800.0,118790.0,0.60130115]
[1753762189262,0.85813,118800.0,118790.0,0.60130115]
[1753762189561,0.06,118800.0,118790.0,0.60130115]
[1753762189770,0.1889927,118820.0,118810.0,0.299165]
[1753762189959,0.9836727,118820.0,118810.0,0.299165]
[1753762190264,0.9836327,118820.0,118810.0,0.299165]
[1753762191667,0.9846327,118820.0,118810.0,0.299165]
[1753762191863,0.9846327,118820.0,118810.0,0.30752322]
[1753762192063,0.9846327,118820.0,118810.0,0.299165]
[1753762192665,0.9866327,118820.0,118810.0,0.299165]
[1753762192866,0.9866327,118820.0,118810.0,0.30749715]
[1753762193467,0.9846327,118820.0,118810.0,0.30849715]
[1753762194168,0.9846327,118820.0,118810.0,0.30749715]
[1753762194370,0.9846327,118820.0,118810.0,0.30849715]
[1753762194569,0.9836327,118820.0,118810.0,0.30949715]
[1753762195467,0.9836327,118820.0,118810.0,0.30849715]
[1753762195669,0.9836327,118820.0,118810.0,0.30949715]
[1753762200472,0.9836327,118820.0,118810.0,0.30954797]
[1753762200770,0.9836327,118820.0,118810.0,0.301165]
[1753762202169,0.9836327,118820.0,118810.0,0.30946915]
[1753762203674,1.1519533,118820.0,118810.0,0.30946915]
[1753762204173,0.9836327,118820.0,118810.0,0.30946915]
[1753762204374,0.9470527,118820.0,118810.0,0.30946915]
[1753762204575,0.9836327,118820.0,118810.0,0.59051982]
[1753762205375,1.1519533,118820.0,118810.0,0.59051982]
[1753762205770,1.1519533,118820.0,118810.0,0.30946915]
[1753762207176,0.4773133,118820.0,118810.0,0.30946915]
[1753762207473,1.1516733,118820.0,118810.0,0.30946915]
[1753762207676,1.43272397,118820.0,118810.0,0.170335]
[1753762208577,1.43272397,118820.0,118810.0,0.209845]
[1753762208776,1.43272397,118820.0,118810.0,0.264075]
[1753762211173,0.75836397,118820.0,118810.0,0.264075]
[1753762211381,1.43264397,118820.0,118810.0,0.170335]
[1753762212279,0.75836397,118820.0,118810.0,0.170335]
[1753762212590,1.43264397,118820.0,118810.0,0.301165]
[1753762217281,1.43264397,118820.0,118810.0,0.37638633]
[1753762219190,1.43264397,118820.0,118810.0,0.301165]
[1753762220978,1.57274778,118820.0,118810.0,0.51174224]
[1753762222586,1.57274778,118820.0,118810.0,0.301165]
[1753762222786,1.57274778,118820.0,118810.0,0.51174224]
[1753762224786,1.57274778,118820.0,118810.0,0.301165]
[1753762228090,1.57274778,118820.0,118810.0,0.246935]
[1753762229789,1.57274778,118820.0,118810.0,0.35412633]
[1753762230189,1.57274778,118820.0,118810.0,0.37627633]
[1753762232588,0.3089927,118820.0,118810.0,0.52722451]
[1753762232788,0.1924127,118820.0,118810.0,0.53055318]
[1753762232995,0.9016227,118820.0,118810.0,0.53055318]
[1753762233393,1.11219994,118820.0,118810.0,0.53055318]
[1753762234191,0.43811994,118820.0,118810.0,0.53055318]
[1753762234394,1.11219994,118820.0,118810.0,0.60577451]
[1753762234990,0.9016227,118820.0,118810.0,0.60577451]
[1753762235892,1.11219994,118820.0,118810.0,0.60577451]
[1753762236092,1.11219994,118820.0,118810.0,0.39519727]
[1753762236293,1.32277718,118820.0,118810.0,0.60577451]
[1753762237394,1.49109888,118820.0,118810.0,0.27955727]
[1753762237793,1.49109888,118820.0,118810.0,0.26421727]
[1753762238699,1.49109888,118820.0,118810.0,0.28864727]
[1753762238897,1.35072279,118820.0,118810.0,0.28864727]
[1753762239895,1.35072279,118820.0,118810.0,0.26421727]
[1753762240202,1.35072279,118820.0,118810.0,0.30367727]
[1753762240503,1.35072279,118820.0,118810.0,0.35779727]
[1753762242003,1.35072279,118820.0,118810.0,0.38026727]
[1753762242404,1.18240109,118820.0,118810.0,0.38026727]
[1753762242702,1.18240109,118820.0,118810.0,0.39671727]
[1753762242904,0.50832109,118820.0,118810.0,0.39671727]
[1753762243101,0.9007527,118820.0,118810.0,0.67749566]
[1753762243295,0.8607527,118820.0,118810.0,0.67749566]
[1753762247314,0.8607127,118820.0,118810.0,0.67749566]
[1753762253300,0.9607127,118820.0,118810.0,0.39671727]
[1753762257314,0.8607127,118820.0,118810.0,0.39671727]
[1753762257615,0.8607127,118820.0,118810.0,0.67749566]
[1753762262815,1.0712557,118820.0,118810.0,0.60726027]
[1753762263013,1.1712557,118820.0,118810.0,0.60726027]
[1753762264320,0.9607127,118820.0,118810.0,0.60726027]
[1753762264514,1.1712557,118820.0,118810.0,0.60726027]
[1753762265820,0.9607127,118820.0,118810.0,0.60726027]
[1753762266020,1.1712557,118820.0,118810.0,0.60726027]
[1753762268423,1.0712557,118820.0,118810.0,0.60726027]
[1753762268823,1.1812557,118820.0,118810.0,0.60726027]
[1753762273829,1.1812557,118820.0,118810.0,0.64732027]
[1753762274630,1.0712557,118820.0,118810.0,0.64732027]
[1753762274834,1.1712557,118820.0,118810.0,0.64732027]
[1753762279145,1.1712557,118820.0,118810.0,0.57209894]
[1753762280846,1.3395779,118820.0,118810.0,0.57209894]
[1753762281034,1.1712557,118820.0,118810.0,0.57209894]
[1753762281234,1.1712557,118820.0,118810.0,0.67832659]
[1753762281745,1.1712557,118820.0,118810.0,0.57209894]
[1753762283245,1.1712557,118820.0,118810.0,0.36155594]
[1753762283447,1.1712557,118820.0,118810.0,0.57209894]
[1753762283747,1.5501209,118820.0,118810.0,0.64745182]
[1753762284046,1.1712557,118820.0,118810.0,0.64745182]
[1753762287651,0.9607127,118820.0,118810.0,0.64745182]
[1753762287950,1.1712557,118820.0,118810.0,0.64745182]
[1753762288151,0.9607127,118820.0,118810.0,0.64745182]
[1753762288450,1.1712557,118820.0,118810.0,0.64745182]
[1753762289655,1.0712557,118820.0,118810.0,0.64745182]
[1753762292360,0.8607127,118820.0,118810.0,0.64745182]
[1753762292654,1.0712557,118820.0,118810.0,0.64745182]
[1753762292848,1.0712557,118820.0,118810.0,0.64745163]
[1753762293550,1.0712557,118820.0,118810.0,0.43690863]
[1753762293755,1.0712557,118820.0,118810.0,0.64745163]
[1753762296457,1.0712557,118820.0,118810.0,0.57209894]
[1753762297459,1.0712557,118820.0,118810.0,0.64745185]
[1753762297653,1.0712957,118820.0,118810.0,0.57209894]
[1753762299063,1.1812957,118820.0,118810.0,0.57209894]
[1753762299264,1.0712957,118820.0,118810.0,0.57209894]
[1753762299864,0.8607527,118820.0,118810.0,0.57209894]
[1753762300064,1.0712957,118820.0,118810.0,0.57209894]
[1753762300456,0.8601527,118820.0,118810.0,0.57209894]
[1753762300661,1.0706957,118820.0,118810.0,0.57209894]
[1753762301166,0.8601527,118820.0,118810.0,0.57209894]
[1753762301368,1.0706957,118820.0,118810.0,0.57209894]
[1753762302072,0.8601527,118820.0,118810.0,0.57209894]
[1753762302369,1.0706957,118820.0,118810.0,0.57209894]
[1753762302964,0.8601527,118820.0,118810.0,0.57209894]
[1753762303164,1.0706957,118820.0,118810.0,0.57209894]
[1753762303377,0.8601527,118820.0,118810.0,0.57209894]
[1753762303670,0.8601527,118820.0,118810.0,0.64745189]
[1753762304061,0.8601527,118820.0,118810.0,0.57209894]
[1753762308769,0.8601527,118820.0,118810.0,0.64746469]
[1753762310877,0.1868727,118820.0,118810.0,0.64746469]
[1753762311071,1.0705757,118820.0,118810.0,0.64746469]
[1753762312072,0.8600327,118820.0,118810.0,0.64746469]
[1753762315475,0.8600327,118820.0,118810.0,0.57209894]
[1753762316573,0.8599527,118820.0,118810.0,0.64746469]
[1753762318376,0.1868727,118820.0,118810.0,0.64746469]
[1753762323274,4e-05,118820.0,118810.0,0.85800769]
[1753762323578,0.08372,118830.0,118820.0,0.298013]
[1753762323781,0.06888,118830.0,118820.0,1.46745727]
[1753762323974,0.08372,118840.0,118830.0,0.2979988]
[1753762324174,0.08372,118840.0,118830.0,0.73753984]
[1753762324175,0.0767076,118840.0,118830.0,0.73753984]
[1753762324370,0.11681,118850.0,118840.0,0.2979849]
[1753762324569,0.11681,118850.0,118840.0,0.7190709]
[1753762325076,0.11681,118850.0,118840.0,1.3920709]
[1753762325268,0.11681,118850.0,118840.0,1.1814879]
[1753762325683,0.11681,118850.0,118840.0,1.18978762]
[1753762325878,0.21681,118850.0,118840.0,1.18978762]
[1753762326076,0.11681,118850.0,118840.0,1.18978762]
[1753762326780,0.21681,118850.0,118840.0,1.18978762]
[1753762327080,0.22681,118850.0,118840.0,1.18978762]
[1753762327875,0.395091,118850.0,118840.0,0.1682949]
[1753762328080,0.605634,118850.0,118840.0,0.1682949]
[1753762328283,0.608634,118850.0,118840.0,0.1682949]
[1753762328881,0.819177,118850.0,118840.0,0.1682949]
[1753762329082,0.608634,118850.0,118840.0,0.1682949]
[1753762329884,0.819177,118850.0,118840.0,0.1682949]
[1753762330582,0.816177,118850.0,118840.0,0.1682949]
[1753762330886,0.817177,118850.0,118840.0,0.1682949]
[1753762331386,1.317177,118850.0,118840.0,0.1682949]
[1753762332784,1.485465,118850.0,118840.0,0.0917349]
[1753762332976,1.696008,118850.0,118840.0,0.1317649]
[1753762333181,1.485465,118850.0,118840.0,0.1317649]
[1753762333982,1.064379,118850.0,118840.0,0.1317649]
[1753762334177,1.485465,118850.0,118840.0,0.1317649]
[1753762336389,1.485465,118850.0,118840.0,0.04003]
[1753762339390,1.485465,118850.0,118840.0,0.2083255]
[1753762339591,1.485465,118850.0,118840.0,0.2320155]
[1753762340695,1.317177,118850.0,118840.0,0.2320155]
[1753762347594,1.317177,118850.0,118840.0,0.06372]
[1753762349595,1.317177,118850.0,118840.0,0.2320158]
[1753762350900,1.317177,118850.0,118840.0,0.06372]
[1753762351789,1.317177,118850.0,118840.0,0.2320158]
[1753762353500,1.317177,118850.0,118840.0,0.06372]
[1753762353799,1.317177,118850.0,118840.0,0.232016]
[1753762354004,1.33679113,118850.0,118840.0,0.232016]
[1753762355202,1.317177,118850.0,118840.0,0.232016]
[1753762359210,1.3366949,118850.0,118840.0,0.232016]
[1753762360808,0.193306,118840.0,118830.0,0.2432086]
[1753762361009,1.607855,118840.0,118830.0,0.02369]
[1753762361212,1.62737626,118840.0,118830.0,0.02369]
[1753762362314,2.12737626,118840.0,118830.0,0.1920001]
[1753762362514,2.12737626,118840.0,118830.0,0.1930001]
[1753762362912,1.91683326,118840.0,118830.0,0.1930001]
[1753762363104,2.12737626,118840.0,118830.0,0.1930001]
[1753762363817,1.91683326,118840.0,118830.0,0.1930001]
[1753762364018,1.91683326,118840.0,118830.0,0.1940001]
[1753762364209,1.91683326,118840.0,118830.0,0.1703101]
[1753762364414,1.91683326,118840.0,118830.0,0.02676]
[1753762364610,1.91683326,118840.0,118830.0,0.1950702]
[1753762364815,2.12737626,118840.0,118830.0,0.1950702]
[1753762367821,1.91683326,118840.0,118830.0,0.3035002]
[1753762369017,1.24391326,118840.0,118830.0,0.3035002]
[1753762369220,1.224392,118840.0,118830.0,0.3035002]
[1753762369418,1.686769,118840.0,118830.0,0.5140432]
[1753762370116,1.686769,118840.0,118830.0,0.3035002]
[1753762370313,1.493463,118840.0,118830.0,0.5140432]
[1753762370517,1.6617594,118840.0,118830.0,0.5140432]
[1753762371124,1.6721394,118840.0,118830.0,0.5140432]
[1753762371325,1.8826824,118840.0,118830.0,0.3035002]
[1753762373528,1.6721394,118840.0,118830.0,0.5140432]
[1753762373826,1.6721394,118840.0,118830.0,0.3035002]
[1753762374128,1.6721394,118840.0,118830.0,0.5140432]
[1753762374324,1.6721394,118840.0,118830.0,0.3035002]
[1753762374524,1.6721394,118840.0,118830.0,0.5140432]
[1753762374827,1.74226689,118840.0,118830.0,0.3035002]
[1753762377229,1.73188689,118840.0,118830.0,0.3035002]
[1753762377528,1.28292,118840.0,118830.0,0.3035002]
[1753762377731,1.4613128,118840.0,118830.0,0.3035002]
[1753762378724,1.29301,118840.0,118830.0,0.3035002]
[1753762379026,1.57368049,118840.0,118830.0,0.3035002]
[1753762379227,1.74198319,118840.0,118830.0,0.3035002]
[1753762379630,1.57368049,118840.0,118830.0,0.3035002]
[1753762386836,1.74198309,118840.0,118830.0,0.3035002]
[1753762388134,1.4613126,118840.0,118830.0,0.3035002]
[1753762388336,1.74198309,118840.0,118830.0,0.3035002]
[1753762395139,1.74198309,118840.0,118830.0,0.2485502]
[1753762396940,1.74198309,118840.0,118830.0,0.2816402]
[1753762396941,1.88237176,118840.0,118830.0,0.2816402]
[1753762398242,1.4613126,118840.0,118830.0,0.2816402]
[1753762398444,1.88237176,118840.0,118830.0,0.2816402]
[1753762402845,1.88237176,118840.0,118830.0,0.3041302]
[1753762408245,1.88237176,118840.0,118830.0,0.51465978]
[1753762409442,1.88237176,118840.0,118830.0,0.3041302]
[1753762410243,1.88237176,118840.0,118830.0,0.51465978]
[1753762414549,1.88237176,118840.0,118830.0,0.3041302]
[1753762414746,1.88237176,118840.0,118830.0,0.51465978]
[1753762415856,1.88237246,118840.0,118830.0,0.3041302]
[1753762417757,1.88237246,118840.0,118830.0,0.51465978]
[1753762420955,1.71406916,118840.0,118830.0,0.51465978]
[1753762421157,1.88237246,118840.0,118830.0,0.3041302]
[1753762422063,1.71406916,118840.0,118830.0,0.3041302]
[1753762422662,1.71406916,118840.0,118830.0,0.51465978]
[1753762423163,1.04114916,118840.0,118830.0,0.51465978]
[1753762423462,1.88225246,118840.0,118830.0,0.51465978]
[1753762424363,1.71394916,118840.0,118830.0,0.51465978]
[1753762424764,1.88225246,118840.0,118830.0,0.51465978]
[1753762425365,1.71394916,118840.0,118830.0,0.51465978]
[1753762426366,1.88225246,118840.0,118830.0,0.51465978]
[1753762428268,1.88225246,118840.0,118830.0,0.3041302]
[1753762429970,1.88225246,118840.0,118830.0,0.2816402]
[1753762431672,1.88225246,118840.0,118830.0,0.2485502]
[1753762443883,1.88225246,118840.0,118830.0,0.1950702]
[1753762445289,2.09278204,118840.0,118830.0,0.002]
[1753762445589,2.09270204,118840.0,118830.0,0.1703174]
[1753762449094,2.11201422,118840.0,118830.0,0.1703174]
[1753762450195,2.11201422,118840.0,118830.0,0.1939874]
[1753762451592,2.09270204,118840.0,118830.0,0.1939874]
[1753762451785,1.41998204,118840.0,118830.0,0.1939874]
[1753762451985,2.09270204,118840.0,118830.0,0.1939874]
[1753762455693,2.09270204,118840.0,118830.0,0.1703174]
[1753762456199,2.11200949,118840.0,118830.0,0.1949974]
[1753762457500,2.09270204,118840.0,118830.0,0.1949974]
[1753762459897,2.09270204,118840.0,118830.0,0.1703174]
[1753762460096,1.88213246,118840.0,118830.0,0.1949974]
[1753762460296,1.20945246,118840.0,118830.0,0.1949974]
[1753762460502,1.88213246,118840.0,118830.0,0.1949974]
[1753762463303,1.21226246,118840.0,118830.0,0.2465574]
[1753762463493,1.89300246,118840.0,118830.0,0.2991874]
[1753762468509,1.89300246,118840.0,118830.0,0.1949974]
[1753762471409,1.4638433,118840.0,118830.0,0.50971698]
[1753762471703,1.89296246,118840.0,118830.0,0.50971698]
[1753762471903,1.89296246,118840.0,118830.0,0.2991874]
[1753762472408,1.22032246,118840.0,118830.0,0.50971698]
[1753762472609,1.68911288,118840.0,118830.0,0.50971698]
[1753762473607,0.7783033,118840.0,118830.0,0.50971698]
[1753762473911,0.84052958,118840.0,118830.0,0.58507525]
[1753762474108,0.21052958,118840.0,118830.0,0.58507525]
[1753762474405,0.91076958,118850.0,118840.0,0.2046741]
[1753762474610,0.34052958,118850.0,118840.0,0.50770368]
[1753762474807,1.01972958,118850.0,118840.0,0.50770368]
[1753762475004,0.80916,118850.0,118840.0,0.71823326]
[1753762475208,0.13,118850.0,118840.0,0.88652126]
[1753762475409,0.88972958,118860.0,118850.0,0.2971599]
[1753762475608,1.01968958,118860.0,118850.0,0.52658178]
[1753762475917,1.01968958,118860.0,118850.0,0.58672981]
[1753762476413,1.01968958,118860.0,118850.0,0.52658178]
[1753762476809,0.80916,118860.0,118850.0,0.37620023]
[1753762477009,0.81722,118860.0,118850.0,0.37620023]
[1753762477204,0.83012,118860.0,118850.0,0.38466126]
[1753762477510,0.83112,118860.0,118850.0,0.38466126]
[1753762477709,0.83076,118860.0,118850.0,0.38466126]
[1753762479313,0.152,118860.0,118850.0,0.32451323]
[1753762479510,0.83076,118860.0,118850.0,0.32451323]
[1753762480814,0.83276,118860.0,118850.0,0.38466126]
[1753762481314,0.83176,118860.0,118850.0,0.38466126]
[1753762481612,0.83076,118860.0,118850.0,0.38466126]
[1753762482013,0.13104,118860.0,118850.0,0.66520653]
[1753762482214,0.13104,118860.0,118850.0,0.83347853]
[1753762483312,0.13104,118860.0,118850.0,0.55293326]
[1753762483908,0.13004,118860.0,118850.0,0.55293326]
[1753762484110,0.13004,118860.0,118850.0,0.55393326]
[1753762484312,0.13736,118860.0,118850.0,0.55393326]
[1753762484618,0.13736,118860.0,118850.0,0.38566126]
[1753762484817,0.13736,118860.0,118850.0,0.38666126]
[1753762486315,0.13004,118860.0,118850.0,0.38666126]
[1753762487720,0.13004,118860.0,118850.0,0.66720653]
[1753762488815,0.53465767,118880.0,118870.0,0.2991817]
[1753762489010,1.32289767,118880.0,118870.0,0.2991817]
[1753762489321,1.15465007,118880.0,118870.0,0.2991817]
[1753762489719,1.82289767,118880.0,118870.0,0.2991817]
[1753762491323,1.32589767,118880.0,118870.0,0.2991817]
[1753762493227,0.64765767,118880.0,118870.0,0.2991817]
[1753762493421,1.32557767,118880.0,118870.0,0.2991817]
[1753762498723,1.46583556,118880.0,118870.0,0.2991817]
[1753762498928,1.46583556,118880.0,118870.0,0.2780017]
[1753762499531,1.46583556,118880.0,118870.0,0.2991817]
[1753762500031,1.46583556,118880.0,118870.0,0.2780017]
[1753762500427,1.46583556,118880.0,118870.0,0.1920317]
[1753762500938,1.50798954,118880.0,118850.0,0.03302]
[1753762501231,0.60810906,118860.0,118850.0,0.3833524]
[1753762501432,1.39610906,118860.0,118850.0,0.3833524]
[1753762502027,1.39610906,118860.0,118850.0,0.2762024]
[1753762502726,0.9753059,118860.0,118850.0,0.2762024]
[1753762502921,1.25595874,118860.0,118850.0,0.2762024]
[1753762503126,1.25595874,118860.0,118850.0,0.2772024]
[1753762504330,1.25595874,118860.0,118850.0,0.2782024]
[1753762506728,1.25595874,118860.0,118850.0,0.002]
[1753762506934,1.27612082,118860.0,118850.0,0.002]
[1753762507331,1.27612261,118860.0,118850.0,0.002]
[1753762507734,1.77612261,118860.0,118850.0,0.002]
[1753762508037,1.77612261,118860.0,118850.0,0.001]
[1753762508439,1.77716261,118860.0,118850.0,0.001]
[1753762509039,0.1847341,118840.0,118830.0,0.2341577]
[1753762509239,1.54067978,118840.0,118830.0,0.2341577]
[1753762509540,1.26002694,118840.0,118830.0,0.2341577]
[1753762510037,1.26002694,118840.0,118830.0,0.02377]
[1753762510239,1.54067978,118840.0,118830.0,0.02377]
[1753762510539,1.54067978,118840.0,118830.0,0.1920883]
[1753762511337,1.54067978,118840.0,118830.0,0.1940883]
[1753762511829,2.04067978,118840.0,118830.0,0.1703183]
[1753762512029,2.04067978,118840.0,118830.0,0.1940883]
[1753762512239,2.04067978,118840.0,118830.0,0.1930883]
[1753762512635,2.04067978,118840.0,118830.0,0.001]
[1753762513438,2.04067978,118840.0,118830.0,0.02393]
[1753762514142,2.04913788,118840.0,118830.0,0.02393]
[1753762514340,2.04913788,118840.0,118830.0,0.02493]
[1753762515648,2.04913788,118840.0,118830.0,0.002]
[1753762516345,2.04913788,118840.0,118830.0,0.001]
[1753762518743,2.04913788,118840.0,118830.0,0.02393]
[1753762519241,2.04913788,118840.0,118830.0,0.001]
[1753762521442,2.04913788,118840.0,118810.0,0.3582753]
[1753762521443,0.1772825,118820.0,118810.0,0.3582753]
[1753762521649,1.26636534,118820.0,118810.0,0.3582753]
[1753762522143,1.26636534,118820.0,118810.0,0.3812053]
[1753762523144,1.33529122,118820.0,118810.0,0.3842053]